[Event "Titled Tuesday Blitz October 5 2021"]
[White "Maksimovic, Bojan"]
[Black "Korobov, Anton"]
[WhiteFideId "14408120"]
[BlackFideId "14105730"]
[WhiteElo "2439"]
[BlackElo "2718"]
[Result "1/2-1/2"]
[Round "03"]
[TimeControl "180+1"]
[Date "2021.10.05"]
[WhiteClock "0:00:08"]
[BlackClock "0:00:14"]

1. e4 {[%clk 0:03:00]}  c5 {[%clk 0:02:57]} 2. Nf3 {[%clk 0:03:01]}  d6 {[%clk 0:02:56]} 3. d4 {[%clk 0:02:59]}  cxd4 {[%clk 0:02:57]} 4. Nxd4 {[%clk 0:03:00]}  Nf6 {[%clk 0:02:57]} 5. Nc3 {[%clk 0:03:00]}  a6 {[%clk 0:02:57]} 6. Bg5 {[%clk 0:03:01]}  Nbd7 {[%clk 0:02:57]} 7. Qe2 {[%clk 0:03:00]}  h6 {[%clk 0:02:53]} 8. Bh4 {[%clk 0:03:00]}  g6 {[%clk 0:02:53]} 9. f4 {[%clk 0:03:00]}  e5 {[%clk 0:02:53]} 10. fxe5 {[%clk 0:03:01]}  dxe5 {[%clk 0:02:53]} 11. O-O-O {[%clk 0:03:02]}  Qc7 {[%clk 0:02:49]} 12. Nb3 {[%clk 0:03:03]}  Bg7 {[%clk 0:02:45]} 13. Nd5 {[%clk 0:02:56]}  Nxd5 {[%clk 0:02:43]} 14. exd5 {[%clk 0:02:57]}  O-O {[%clk 0:02:43]} 15. Be7 {[%clk 0:02:52]}  Re8 {[%clk 0:02:39]} 16. d6 {[%clk 0:02:51]}  Qc6 {[%clk 0:02:31]} 17. h4 {[%clk 0:02:33]}  a5 {[%clk 0:02:11]} 18. h5 {[%clk 0:02:24]}  g5 {[%clk 0:02:07]} 19. Qb5 {[%clk 0:02:00]}  a4 {[%clk 0:01:57]} 20. Nd2 {[%clk 0:01:59]}  Nc5 {[%clk 0:01:40]} 21. Qxc6 {[%clk 0:01:36]}  bxc6 {[%clk 0:01:41]} 22. Bc4 {[%clk 0:01:36]}  Ra7 {[%clk 0:01:18]} 23. Rhf1 {[%clk 0:01:22]}  Be6 {[%clk 0:01:16]} 24. Bxe6 {[%clk 0:01:19]}  Nxe6 {[%clk 0:01:17]} 25. Ne4 {[%clk 0:01:15]}  Rd7 {[%clk 0:01:11]} 26. g4 {[%clk 0:01:13]}  Rb8 {[%clk 0:00:51]} 27. c3 {[%clk 0:01:13]}  Rb5 {[%clk 0:00:48]} 28. Kc2 {[%clk 0:01:10]}  Nf4 {[%clk 0:00:36]} 29. c4 {[%clk 0:00:50]}  Rb4 {[%clk 0:00:36]} 30. Kc3 {[%clk 0:00:50]}  Rbb7 {[%clk 0:00:34]} 31. b3 {[%clk 0:00:42]}  axb3 {[%clk 0:00:25]} 32. axb3 {[%clk 0:00:43]}  Ne2+ {[%clk 0:00:23]} 33. Kb2 {[%clk 0:00:43]}  Nd4 {[%clk 0:00:23]} 34. Rd3 {[%clk 0:00:43]}  Rxe7 {[%clk 0:00:21]} 35. dxe7 {[%clk 0:00:42]}  Rxe7 {[%clk 0:00:22]} 36. Ra1 {[%clk 0:00:42]}  f5 {[%clk 0:00:17]} 37. Ra8+ {[%clk 0:00:40]}  Kf7 {[%clk 0:00:17]} 38. Nd6+ {[%clk 0:00:37]}  Ke6 {[%clk 0:00:17]} 39. Rxd4 {[%clk 0:00:19]}  exd4 {[%clk 0:00:15]} 40. Nxf5 {[%clk 0:00:18]}  Rd7 {[%clk 0:00:12]} 41. Kc2 {[%clk 0:00:10]}  d3+ {[%clk 0:00:13]} 42. Kd2 {[%clk 0:00:10]}  Be5 {[%clk 0:00:13]} 43. Re8+ {[%clk 0:00:10]}  Kf6 {[%clk 0:00:13]} 44. Rf8+ {[%clk 0:00:08]}  Ke6 {[%clk 0:00:13]} 45. Re8+ {[%clk 0:00:08]}  Kf6 {[%clk 0:00:13]} 46. Rf8+ {[%clk 0:00:08]}  Ke6 {[%clk 0:00:14]} 47. Re8+ {[%clk 0:00:08]} 1/2-1/2


[Site "https://www.chess.com"]

[Event "Titled Tuesday Blitz October 5 2021"]
[White "Maly, Alexey"]
[Black "Yaniuk, Volodymyr"]
[WhiteFideId "14103184"]
[BlackFideId "14133083"]
[WhiteElo "2294"]
[BlackElo "2207"]
[Result "1-0"]
[Round "03"]
[TimeControl "180+1"]
[Date "2021.10.05"]
[WhiteClock "0:00:16"]
[BlackClock "0:00:09"]

1. d4 {[%clk 0:03:00]}  d5 {[%clk 0:02:59]} 2. c4 {[%clk 0:03:01]}  e6 {[%clk 0:02:59]} 3. Nf3 {[%clk 0:03:01]}  Nf6 {[%clk 0:02:59]} 4. e3 {[%clk 0:03:01]}  a6 {[%clk 0:02:59]} 5. Nbd2 {[%clk 0:03:01]}  b6 {[%clk 0:02:58]} 6. Bd3 {[%clk 0:03:02]}  Bb7 {[%clk 0:02:58]} 7. O-O {[%clk 0:03:02]}  Be7 {[%clk 0:02:58]} 8. Qe2 {[%clk 0:03:02]}  c5 {[%clk 0:02:54]} 9. b3 {[%clk 0:03:02]}  cxd4 {[%clk 0:02:53]} 10. Nxd4 {[%clk 0:03:01]}  O-O {[%clk 0:02:51]} 11. Bb2 {[%clk 0:03:01]}  dxc4 {[%clk 0:02:47]} 12. Nxc4 {[%clk 0:02:59]}  b5 {[%clk 0:02:46]} 13. Ne5 {[%clk 0:02:56]}  Qb6 {[%clk 0:02:40]} 14. a4 {[%clk 0:02:49]}  bxa4 {[%clk 0:02:37]} 15. Rxa4 {[%clk 0:02:44]}  Nbd7 {[%clk 0:02:36]} 16. Nxd7 {[%clk 0:02:37]}  Nxd7 {[%clk 0:02:37]} 17. Qh5 {[%clk 0:01:41]}  Nf6 {[%clk 0:02:28]} 18. Qh3 {[%clk 0:01:36]}  h6 {[%clk 0:02:22]} 19. Rfa1 {[%clk 0:01:30]}  Rfd8 {[%clk 0:02:15]} 20. Bc4 {[%clk 0:01:28]}  Nd5 {[%clk 0:02:00]} 21. Qg3 {[%clk 0:01:23]}  Bf6 {[%clk 0:01:56]} 22. Qg4 {[%clk 0:01:17]}  Rdc8 {[%clk 0:01:42]} 23. Qe2 {[%clk 0:01:15]}  a5 {[%clk 0:01:39]} 24. h3 {[%clk 0:01:11]}  Nb4 {[%clk 0:01:38]} 25. Bc3 {[%clk 0:01:07]}  Rd8 {[%clk 0:01:28]} 26. Qg4 {[%clk 0:00:57]}  Kh8 {[%clk 0:01:15]} 27. Qe2 {[%clk 0:00:52]}  Rdc8 {[%clk 0:01:01]} 28. Qd2 {[%clk 0:00:45]}  Be7 {[%clk 0:00:57]} 29. Qe2 {[%clk 0:00:42]}  Bf6 {[%clk 0:00:56]} 30. Qd2 {[%clk 0:00:42]}  Rd8 {[%clk 0:00:52]} 31. Qe2 {[%clk 0:00:41]}  Nc6 {[%clk 0:00:35]} 32. Qh5 {[%clk 0:00:39]}  Nxd4 {[%clk 0:00:33]} 33. Bxd4 {[%clk 0:00:39]}  Bxd4 {[%clk 0:00:29]} 34. exd4 {[%clk 0:00:40]}  Qc6 {[%clk 0:00:18]} 35. Bf1 {[%clk 0:00:37]}  Qc7 {[%clk 0:00:12]} 36. Rxa5 {[%clk 0:00:35]}  Rxa5 {[%clk 0:00:10]} 37. Qxa5 {[%clk 0:00:36]}  Qxa5 {[%clk 0:00:07]} 38. Rxa5 {[%clk 0:00:37]}  Rxd4 {[%clk 0:00:08]} 39. Ra7 {[%clk 0:00:34]}  Rd7 {[%clk 0:00:05]} 40. Kh2 {[%clk 0:00:29]}  Bc6 {[%clk 0:00:03]} 41. Rxd7 {[%clk 0:00:28]}  Bxd7 {[%clk 0:00:04]} 42. Kg3 {[%clk 0:00:24]}  Kg8 {[%clk 0:00:03]} 43. Kf4 {[%clk 0:00:24]}  Kf8 {[%clk 0:00:03]} 44. Ke5 {[%clk 0:00:24]}  Ke7 {[%clk 0:00:04]} 45. b4 {[%clk 0:00:25]}  f6+ {[%clk 0:00:05]} 46. Kd4 {[%clk 0:00:25]}  Kd6 {[%clk 0:00:06]} 47. h4 {[%clk 0:00:25]}  Bc6 {[%clk 0:00:06]} 48. g3 {[%clk 0:00:25]}  e5+ {[%clk 0:00:06]} 49. Kc4 {[%clk 0:00:24]}  g5 {[%clk 0:00:07]} 50. hxg5 {[%clk 0:00:23]}  fxg5 {[%clk 0:00:07]} 51. b5 {[%clk 0:00:22]}  Bb7 {[%clk 0:00:07]} 52. Be2 {[%clk 0:00:21]}  Ba8 {[%clk 0:00:06]} 53. Kb4 {[%clk 0:00:21]}  Kc7 {[%clk 0:00:06]} 54. Kc5 {[%clk 0:00:22]}  Bb7 {[%clk 0:00:05]} 55. b6+ {[%clk 0:00:22]}  Kd7 {[%clk 0:00:06]} 56. Bb5+ {[%clk 0:00:21]}  Ke7 {[%clk 0:00:06]} 57. Bc6 {[%clk 0:00:20]}  Ba6 {[%clk 0:00:06]} 58. b7 {[%clk 0:00:19]}  Bxb7 {[%clk 0:00:07]} 59. Bxb7 {[%clk 0:00:20]}  h5 {[%clk 0:00:07]} 60. Kd5 {[%clk 0:00:18]}  Kf6 {[%clk 0:00:08]} 61. Ke4 {[%clk 0:00:18]}  h4 {[%clk 0:00:07]} 62. gxh4 {[%clk 0:00:18]}  gxh4 {[%clk 0:00:08]} 63. Bc8 {[%clk 0:00:19]}  Kg5 {[%clk 0:00:08]} 64. Kxe5 {[%clk 0:00:18]}  Kh5 {[%clk 0:00:07]} 65. Bh3 {[%clk 0:00:18]}  Kg5 {[%clk 0:00:07]} 66. f4+ {[%clk 0:00:18]}  Kg6 {[%clk 0:00:08]} 67. f5+ {[%clk 0:00:17]}  Kf7 {[%clk 0:00:08]} 68. f6 {[%clk 0:00:17]}  Kf8 {[%clk 0:00:08]} 69. Ke6 {[%clk 0:00:16]}  Ke8 {[%clk 0:00:08]} 70. f7+ {[%clk 0:00:16]}  Kf8 {[%clk 0:00:09]} 71. Bg4 {[%clk 0:00:16]}  Kg7 {[%clk 0:00:09]} 72. Ke7 {[%clk 0:00:16]} 1-0


[Site "https://www.chess.com"]

[Event "Titled Tuesday Blitz October 5 2021"]
[White "Martin Carmona, Gaston Manuel"]
[Black "Salinas Herrera, Pablo"]
[WhiteFideId "22284567"]
[BlackFideId "3407128"]
[WhiteElo "2161"]
[BlackElo "2541"]
[Result "1-0"]
[Round "03"]
[TimeControl "180+1"]
[Date "2021.10.05"]
[WhiteClock "0:00:40"]
[BlackClock "0:00:19"]

1. d4 {[%clk 0:03:00]}  d5 {[%clk 0:02:59]} 2. Nf3 {[%clk 0:03:01]}  Nf6 {[%clk 0:02:58]} 3. c4 {[%clk 0:03:01]}  c6 {[%clk 0:02:56]} 4. e3 {[%clk 0:02:58]}  g6 {[%clk 0:02:53]} 5. Nc3 {[%clk 0:02:57]}  Bg7 {[%clk 0:02:53]} 6. Be2 {[%clk 0:02:44]}  O-O {[%clk 0:02:52]} 7. O-O {[%clk 0:02:45]}  Bg4 {[%clk 0:02:51]} 8. cxd5 {[%clk 0:02:44]}  cxd5 {[%clk 0:02:50]} 9. Qb3 {[%clk 0:02:44]}  Bc8 {[%clk 0:02:45]} 10. Ne5 {[%clk 0:02:35]}  Nc6 {[%clk 0:02:42]} 11. Nxc6 {[%clk 0:02:30]}  bxc6 {[%clk 0:02:43]} 12. Bd2 {[%clk 0:02:22]}  Rb8 {[%clk 0:02:34]} 13. Qxb8 {[%clk 0:02:19]}  e5 {[%clk 0:02:00]} 14. dxe5 {[%clk 0:02:01]}  Nd7 {[%clk 0:01:55]} 15. Qxa7 {[%clk 0:02:01]}  Bxe5 {[%clk 0:01:54]} 16. Bf3 {[%clk 0:01:57]}  Qf6 {[%clk 0:01:51]} 17. Qa4 {[%clk 0:01:54]}  Nc5 {[%clk 0:01:50]} 18. Qa5 {[%clk 0:01:42]}  Nd3 {[%clk 0:01:48]} 19. b3 {[%clk 0:01:34]}  h5 {[%clk 0:01:39]} 20. Be2 {[%clk 0:01:33]}  Bf5 {[%clk 0:01:33]} 21. Rad1 {[%clk 0:01:30]}  Nb2 {[%clk 0:01:17]} 22. Rc1 {[%clk 0:01:30]}  h4 {[%clk 0:01:12]} 23. f4 {[%clk 0:01:21]}  Bd6 {[%clk 0:01:09]} 24. Qa6 {[%clk 0:01:14]}  d4 {[%clk 0:00:53]} 25. Nd1 {[%clk 0:01:06]}  d3 {[%clk 0:00:47]} 26. Bf3 {[%clk 0:01:01]}  Nxd1 {[%clk 0:00:36]} 27. Rfxd1 {[%clk 0:01:02]}  h3 {[%clk 0:00:36]} 28. g3 {[%clk 0:01:00]}  Qe7 {[%clk 0:00:29]} 29. Qxc6 {[%clk 0:00:53]}  Bb4 {[%clk 0:00:25]} 30. Bxb4 {[%clk 0:00:49]}  Qxe3+ {[%clk 0:00:20]} 31. Kh1 {[%clk 0:00:49]}  Rc8 {[%clk 0:00:20]} 32. Qxc8+ {[%clk 0:00:41]}  Bxc8 {[%clk 0:00:21]} 33. Rxc8+ {[%clk 0:00:41]}  Kh7 {[%clk 0:00:22]} 34. Rf1 {[%clk 0:00:41]}  Qd4 {[%clk 0:00:19]} 35. Bc3 {[%clk 0:00:40]} 1-0


[Site "https://www.chess.com"]

[Event "Titled Tuesday Blitz October 5 2021"]
[White "Mickiewicz, Piotr"]
[Black "Gasanov, Zaur"]
[WhiteFideId "1114891"]
[BlackFideId "34125970"]
[WhiteElo "2251"]
[BlackElo "2099"]
[Result "1-0"]
[Round "03"]
[TimeControl "180+1"]
[Date "2021.10.05"]
[WhiteClock "0:00:30"]
[BlackClock "0:00:02"]

1. Nf3 {[%clk 0:03:00]}  Nf6 {[%clk 0:02:59]} 2. g3 {[%clk 0:03:00]}  g6 {[%clk 0:02:58]} 3. Bg2 {[%clk 0:03:01]}  Bg7 {[%clk 0:02:59]} 4. O-O {[%clk 0:03:02]}  O-O {[%clk 0:02:59]} 5. c4 {[%clk 0:03:02]}  c5 {[%clk 0:02:56]} 6. d4 {[%clk 0:03:00]}  cxd4 {[%clk 0:02:56]} 7. Nxd4 {[%clk 0:03:01]}  Nc6 {[%clk 0:02:55]} 8. Nc3 {[%clk 0:02:58]}  Nxd4 {[%clk 0:02:55]} 9. Qxd4 {[%clk 0:02:58]}  d6 {[%clk 0:02:54]} 10. b3 {[%clk 0:02:52]}  Qc7 {[%clk 0:02:48]} 11. Bb2 {[%clk 0:02:50]}  Be6 {[%clk 0:02:47]} 12. Rac1 {[%clk 0:02:49]}  a6 {[%clk 0:02:41]} 13. Rc2 {[%clk 0:02:29]}  Rab8 {[%clk 0:02:37]} 14. Rfc1 {[%clk 0:02:27]}  Rfc8 {[%clk 0:02:36]} 15. Qd2 {[%clk 0:02:21]}  h5 {[%clk 0:02:25]} 16. Nd5 {[%clk 0:02:17]}  Bxd5 {[%clk 0:02:15]} 17. cxd5 {[%clk 0:02:18]}  Qd7 {[%clk 0:02:15]} 18. h3 {[%clk 0:02:11]}  Kh7 {[%clk 0:02:08]} 19. Qd3 {[%clk 0:02:08]}  Qd8 {[%clk 0:01:57]} 20. g4 {[%clk 0:02:02]}  hxg4 {[%clk 0:01:46]} 21. hxg4 {[%clk 0:02:03]}  Rxc2 {[%clk 0:01:44]} 22. Rxc2 {[%clk 0:01:56]}  Nxg4 {[%clk 0:01:34]} 23. Qh3+ {[%clk 0:01:30]}  Nh6 {[%clk 0:01:32]} 24. Bc1 {[%clk 0:01:29]}  b5 {[%clk 0:00:50]} 25. b4 {[%clk 0:01:07]}  a5 {[%clk 0:00:21]} 26. a3 {[%clk 0:01:06]}  axb4 {[%clk 0:00:20]} 27. axb4 {[%clk 0:01:07]}  Ra8 {[%clk 0:00:21]} 28. Kh2 {[%clk 0:01:06]}  Qf8 {[%clk 0:00:13]} 29. Be4 {[%clk 0:00:58]}  f5 {[%clk 0:00:10]} 30. Bd3 {[%clk 0:00:57]}  Rc8 {[%clk 0:00:10]} 31. Rc6 {[%clk 0:00:49]}  Rb8 {[%clk 0:00:07]} 32. Bg5 {[%clk 0:00:45]}  Qf7 {[%clk 0:00:07]} 33. Qh4 {[%clk 0:00:43]}  Qxd5 {[%clk 0:00:06]} 34. Rc7 {[%clk 0:00:39]}  Rb7 {[%clk 0:00:03]} 35. e4 {[%clk 0:00:32]}  Qe5+ {[%clk 0:00:02]} 36. f4 {[%clk 0:00:30]} 1-0


[Site "https://www.chess.com"]

[Event "Titled Tuesday Blitz October 5 2021"]
[White "Moroni, Luca Jr"]
[Black "Lewtak, Damian"]
[WhiteFideId "865834"]
[BlackFideId "1141724"]
[WhiteElo "2491"]
[BlackElo "2203"]
[Result "1-0"]
[Round "03"]
[TimeControl "180+1"]
[Date "2021.10.05"]
[WhiteClock "0:00:27"]
[BlackClock "0:00:07"]

1. d4 {[%clk 0:03:00]}  d6 {[%clk 0:02:58]} 2. e4 {[%clk 0:02:59]}  Nf6 {[%clk 0:02:53]} 3. Nc3 {[%clk 0:02:59]}  e5 {[%clk 0:02:53]} 4. dxe5 {[%clk 0:03:00]}  dxe5 {[%clk 0:02:54]} 5. Qxd8+ {[%clk 0:03:01]}  Kxd8 {[%clk 0:02:54]} 6. Bc4 {[%clk 0:03:02]}  Be6 {[%clk 0:02:55]} 7. Bxe6 {[%clk 0:03:01]}  fxe6 {[%clk 0:02:56]} 8. f3 {[%clk 0:03:01]}  Bd6 {[%clk 0:02:56]} 9. Be3 {[%clk 0:03:02]}  a6 {[%clk 0:02:56]} 10. Nh3 {[%clk 0:03:02]}  Ke7 {[%clk 0:02:55]} 11. Nf2 {[%clk 0:03:03]}  Nbd7 {[%clk 0:02:52]} 12. O-O {[%clk 0:03:01]}  b5 {[%clk 0:02:47]} 13. Rad1 {[%clk 0:03:00]}  h6 {[%clk 0:02:37]} 14. h4 {[%clk 0:02:48]}  Rag8 {[%clk 0:02:36]} 15. Nd3 {[%clk 0:02:44]}  g5 {[%clk 0:02:24]} 16. hxg5 {[%clk 0:02:44]}  hxg5 {[%clk 0:02:25]} 17. g4 {[%clk 0:02:44]}  c5 {[%clk 0:02:13]} 18. Kg2 {[%clk 0:02:26]}  c4 {[%clk 0:02:08]} 19. Nf2 {[%clk 0:02:26]}  Ne8 {[%clk 0:01:52]} 20. Rh1 {[%clk 0:02:23]}  Kf6 {[%clk 0:01:46]} 21. Rxh8 {[%clk 0:02:17]}  Rxh8 {[%clk 0:01:46]} 22. Nh3 {[%clk 0:02:13]}  Rg8 {[%clk 0:01:44]} 23. Ne2 {[%clk 0:02:12]}  Nf8 {[%clk 0:01:25]} 24. Ng3 {[%clk 0:02:07]}  Nh7 {[%clk 0:01:24]} 25. a4 {[%clk 0:01:58]}  b4 {[%clk 0:01:18]} 26. b3 {[%clk 0:01:56]}  cxb3 {[%clk 0:01:13]} 27. cxb3 {[%clk 0:01:57]}  Ke7 {[%clk 0:01:11]} 28. Nf1 {[%clk 0:01:50]}  Nef6 {[%clk 0:00:58]} 29. Nd2 {[%clk 0:01:49]}  Nd7 {[%clk 0:00:58]} 30. Nc4 {[%clk 0:01:48]}  Bc7 {[%clk 0:00:53]} 31. a5 {[%clk 0:01:29]}  Nb8 {[%clk 0:00:38]} 32. Bc5+ {[%clk 0:01:29]}  Kf6 {[%clk 0:00:38]} 33. Bxb4 {[%clk 0:01:11]}  Nc6 {[%clk 0:00:31]} 34. Bc3 {[%clk 0:01:11]}  Nf8 {[%clk 0:00:22]} 35. b4 {[%clk 0:00:46]}  Rg7 {[%clk 0:00:21]} 36. Nd6 {[%clk 0:00:35]}  Re7 {[%clk 0:00:14]} 37. Bd2 {[%clk 0:00:32]}  Nh7 {[%clk 0:00:10]} 38. Rc1 {[%clk 0:00:27]}  Nd4 {[%clk 0:00:07]} 39. Rxc7 {[%clk 0:00:27]} 1-0


[Site "https://www.chess.com"]

[Event "Titled Tuesday Blitz October 5 2021"]
[White "Mustafayev, Farid"]
[Black "Zlatin, Alexander"]
[WhiteFideId "13408771"]
[BlackFideId "2810549"]
[WhiteElo "2091"]
[BlackElo "2228"]
[Result "1-0"]
[Round "03"]
[TimeControl "180+1"]
[Date "2021.10.05"]
[WhiteClock "0:00:26"]
[BlackClock "0:01:14"]

1. d4 {[%clk 0:03:00]}  Nf6 {[%clk 0:02:59]} 2. c4 {[%clk 0:02:59]}  e6 {[%clk 0:02:55]} 3. Nc3 {[%clk 0:03:00]}  d5 {[%clk 0:02:49]} 4. cxd5 {[%clk 0:02:59]}  exd5 {[%clk 0:02:46]} 5. Bg5 {[%clk 0:02:59]}  Be7 {[%clk 0:02:46]} 6. e3 {[%clk 0:02:58]}  O-O {[%clk 0:02:46]} 7. Bd3 {[%clk 0:02:58]}  b6 {[%clk 0:02:43]} 8. Nge2 {[%clk 0:02:57]}  Bb7 {[%clk 0:02:42]} 9. O-O {[%clk 0:02:56]}  Ne4 {[%clk 0:02:41]} 10. Bxe7 {[%clk 0:02:56]}  Qxe7 {[%clk 0:02:42]} 11. Nf4 {[%clk 0:02:44]}  Nxc3 {[%clk 0:02:42]} 12. bxc3 {[%clk 0:02:45]}  Nd7 {[%clk 0:02:43]} 13. Qh5 {[%clk 0:02:33]}  Nf6 {[%clk 0:02:41]} 14. Qh4 {[%clk 0:02:33]}  g6 {[%clk 0:02:35]} 15. Rae1 {[%clk 0:02:25]}  Rfe8 {[%clk 0:02:34]} 16. f3 {[%clk 0:02:22]}  Nd7 {[%clk 0:02:28]} 17. Qf2 {[%clk 0:02:21]}  c5 {[%clk 0:02:27]} 18. Bb5 {[%clk 0:02:11]}  a6 {[%clk 0:02:20]} 19. Bxd7 {[%clk 0:02:11]}  Qxd7 {[%clk 0:02:20]} 20. Nd3 {[%clk 0:02:12]}  cxd4 {[%clk 0:02:18]} 21. cxd4 {[%clk 0:02:11]}  f6 {[%clk 0:02:17]} 22. h4 {[%clk 0:01:57]}  a5 {[%clk 0:02:14]} 23. Rb1 {[%clk 0:01:56]}  Ba6 {[%clk 0:02:13]} 24. Rfd1 {[%clk 0:01:52]}  Bxd3 {[%clk 0:02:09]} 25. Rxd3 {[%clk 0:01:52]}  b5 {[%clk 0:02:10]} 26. Rc3 {[%clk 0:01:51]}  b4 {[%clk 0:02:06]} 27. Rc5 {[%clk 0:01:51]}  Rec8 {[%clk 0:02:05]} 28. Rbc1 {[%clk 0:01:51]}  Rxc5 {[%clk 0:02:03]} 29. Rxc5 {[%clk 0:01:52]}  a4 {[%clk 0:02:04]} 30. Qc2 {[%clk 0:01:50]}  Rb8 {[%clk 0:01:58]} 31. Rc7 {[%clk 0:01:20]}  b3 {[%clk 0:01:46]} 32. Qc5 {[%clk 0:01:15]}  Qe6 {[%clk 0:01:42]} 33. Re7 {[%clk 0:01:04]}  Qxe7 {[%clk 0:01:25]} 34. Qxe7 {[%clk 0:01:03]}  bxa2 {[%clk 0:01:22]} 35. Qe6+ {[%clk 0:01:00]}  Kg7 {[%clk 0:01:22]} 36. Qe7+ {[%clk 0:00:27]}  Kh6 {[%clk 0:01:20]} 37. Qa3 {[%clk 0:00:24]}  Rb1+ {[%clk 0:01:19]} 38. Kh2 {[%clk 0:00:24]}  a1=Q {[%clk 0:01:16]} 39. Qf8+ {[%clk 0:00:25]}  Kh5 {[%clk 0:01:17]} 40. g4+ {[%clk 0:00:25]}  Kxh4 {[%clk 0:01:14]} 41. Qh6# {[%clk 0:00:26]} 1-0


[Site "https://www.chess.com"]

[Event "Titled Tuesday Blitz October 5 2021"]
[White "Nakamura, Hikaru"]
[Black "Stribuk, Artiom"]
[WhiteFideId "2016192"]
[BlackFideId "13515659"]
[WhiteElo "3201"]
[BlackElo "2726"]
[Result "1-0"]
[Round "03"]
[TimeControl "180+1"]
[Date "2021.10.05"]
[WhiteClock "0:02:36"]
[BlackClock "0:00:05"]

1. Nf3 {[%clk 0:03:00]}  Nf6 {[%clk 0:02:59]} 2. e3 {[%clk 0:02:59]}  g6 {[%clk 0:02:53]} 3. b3 {[%clk 0:02:57]}  Bg7 {[%clk 0:02:53]} 4. Bb2 {[%clk 0:02:58]}  O-O {[%clk 0:02:53]} 5. d4 {[%clk 0:02:59]}  d5 {[%clk 0:02:53]} 6. c4 {[%clk 0:02:59]}  c6 {[%clk 0:02:45]} 7. Bd3 {[%clk 0:02:58]}  Bf5 {[%clk 0:02:23]} 8. Bxf5 {[%clk 0:02:58]}  gxf5 {[%clk 0:02:24]} 9. Nbd2 {[%clk 0:02:57]}  Nbd7 {[%clk 0:02:21]} 10. h3 {[%clk 0:02:57]}  e6 {[%clk 0:02:14]} 11. Qc2 {[%clk 0:02:54]}  h6 {[%clk 0:02:00]} 12. O-O-O {[%clk 0:02:50]}  b5 {[%clk 0:01:54]} 13. c5 {[%clk 0:02:48]}  Ne4 {[%clk 0:01:49]} 14. Rdf1 {[%clk 0:02:48]}  Ndf6 {[%clk 0:01:12]} 15. g4 {[%clk 0:02:47]}  fxg4 {[%clk 0:01:07]} 16. hxg4 {[%clk 0:02:42]}  Nxd2 {[%clk 0:00:57]} 17. Qxd2 {[%clk 0:02:42]}  Nxg4 {[%clk 0:00:52]} 18. Rfg1 {[%clk 0:02:42]}  f5 {[%clk 0:00:52]} 19. Nh4 {[%clk 0:02:41]}  Kh7 {[%clk 0:00:25]} 20. f3 {[%clk 0:02:41]}  Nf6 {[%clk 0:00:25]} 21. Qg2 {[%clk 0:02:39]}  Qe7 {[%clk 0:00:13]} 22. Ng6 {[%clk 0:02:37]}  Qf7 {[%clk 0:00:12]} 23. Ne5 {[%clk 0:02:37]}  Qc7 {[%clk 0:00:06]} 24. Rxh6+ {[%clk 0:02:34]}  Bxh6 {[%clk 0:00:05]} 25. Qg6+ {[%clk 0:02:34]}  Kh8 {[%clk 0:00:05]} 26. Qxh6+ {[%clk 0:02:35]}  Qh7 {[%clk 0:00:04]} 27. Ng6+ {[%clk 0:02:36]}  Kg8 {[%clk 0:00:05]} 28. Nxf8+ {[%clk 0:02:36]} 1-0


[Site "https://www.chess.com"]

[Event "Titled Tuesday Blitz October 5 2021"]
[White "Omariev, Maksim"]
[Black "Gokerkan, Cem Kaan"]
[WhiteFideId "4193423"]
[BlackFideId "6336760"]
[WhiteElo "2451"]
[BlackElo "2382"]
[Result "1-0"]
[Round "03"]
[TimeControl "180+1"]
[Date "2021.10.05"]
[WhiteClock "0:00:37"]
[BlackClock "0:00:01"]

1. e4 {[%clk 0:03:00]}  c6 {[%clk 0:02:59]} 2. d4 {[%clk 0:02:57]}  d5 {[%clk 0:02:58]} 3. exd5 {[%clk 0:02:58]}  cxd5 {[%clk 0:02:58]} 4. Bd3 {[%clk 0:02:58]}  Nf6 {[%clk 0:02:55]} 5. h3 {[%clk 0:02:58]}  Nc6 {[%clk 0:02:51]} 6. c3 {[%clk 0:02:54]}  g6 {[%clk 0:02:44]} 7. Nf3 {[%clk 0:02:53]}  Bg7 {[%clk 0:02:44]} 8. O-O {[%clk 0:02:46]}  Bf5 {[%clk 0:02:44]} 9. Bxf5 {[%clk 0:02:43]}  gxf5 {[%clk 0:02:45]} 10. Re1 {[%clk 0:02:44]}  e6 {[%clk 0:02:37]} 11. Bf4 {[%clk 0:02:45]}  Qe7 {[%clk 0:02:31]} 12. Na3 {[%clk 0:02:34]}  Ne4 {[%clk 0:02:21]} 13. Nd2 {[%clk 0:02:29]}  a6 {[%clk 0:02:16]} 14. Nc2 {[%clk 0:02:27]}  Bf6 {[%clk 0:01:58]} 15. f3 {[%clk 0:02:27]}  Nxd2 {[%clk 0:01:40]} 16. Qxd2 {[%clk 0:02:28]}  O-O-O {[%clk 0:01:32]} 17. a4 {[%clk 0:02:24]}  Rhg8 {[%clk 0:01:30]} 18. b4 {[%clk 0:02:22]}  Bg5 {[%clk 0:01:05]} 19. b5 {[%clk 0:02:21]}  Na5 {[%clk 0:00:57]} 20. bxa6 {[%clk 0:02:17]}  bxa6 {[%clk 0:00:57]} 21. Nb4 {[%clk 0:01:49]}  Nc4 {[%clk 0:00:52]} 22. Bxg5 {[%clk 0:01:45]}  Rxg5 {[%clk 0:00:34]} 23. Qf4 {[%clk 0:01:38]}  Rdg8 {[%clk 0:00:31]} 24. Ra2 {[%clk 0:01:33]}  Qb7 {[%clk 0:00:19]} 25. Nd3 {[%clk 0:01:26]}  Qb3 {[%clk 0:00:15]} 26. Ree2 {[%clk 0:01:06]}  Qd1+ {[%clk 0:00:13]} 27. Ne1 {[%clk 0:00:59]}  Qb1 {[%clk 0:00:08]} 28. Kh2 {[%clk 0:00:56]}  h5 {[%clk 0:00:07]} 29. h4 {[%clk 0:00:46]}  R5g6 {[%clk 0:00:07]} 30. Rac2 {[%clk 0:00:40]}  a5 {[%clk 0:00:05]} 31. Nd3 {[%clk 0:00:40]}  Qf1 {[%clk 0:00:02]} 32. Ne5 {[%clk 0:00:39]}  Nxe5 {[%clk 0:00:01]} 33. dxe5 {[%clk 0:00:39]}  R6g7 {[%clk 0:00:01]} 34. c4 {[%clk 0:00:38]}  Qb1 {[%clk 0:00:01]} 35. cxd5+ {[%clk 0:00:38]}  Kd8 {[%clk 0:00:01]} 36. d6 {[%clk 0:00:37]}  Qb6 {[%clk 0:00:01]} 37. Qc4 {[%clk 0:00:37]} 1-0


[Site "https://www.chess.com"]